[Event "Open Nuevo Centro. Jornada 1"]
[Site "Chess.com"]
[Date "2020.06.19"]
[Round "8"]
[White "Castellano L�pez, Javier"]
[Black "Gutierrez Marco, Dario"]
[Result "1/2-1/2"]
[WhiteElo "1772"]
[BlackElo "1916"]
[TimeControl "180+2"]
[EndTime "12:05:56 PDT"]
[Termination "Partida en tablas por material insuficiente"]

1. d4 {[%clk 0:03:01.9]} 1... Nf6 {[%clk 0:02:59.7]} 2. c4 {[%clk 0:03:01.7]}
2... c5 {[%clk 0:03:00.3]} 3. d5 {[%clk 0:03:02.4]} 3... e6 {[%clk 0:03:01.5]}
4. Nc3 {[%clk 0:03:02.6]} 4... exd5 {[%clk 0:03:00.3]} 5. cxd5 {[%clk
0:03:04.1]} 5... d6 {[%clk 0:03:01.3]} 6. e4 {[%clk 0:03:03.9]} 6... g6 {[%clk
0:03:02.2]} 7. Nf3 {[%clk 0:03:04.2]} 7... Bg7 {[%clk 0:03:03.4]} 8. Bd3 {[%clk
0:03:01.9]} 8... O-O {[%clk 0:03:04.1]} 9. O-O {[%clk 0:03:02.1]} 9... a6 {[%clk
0:03:05]} 10. a4 {[%clk 0:03:01.8]} 10... Bg4 {[%clk 0:03:05.6]} 11. h3 {[%clk
0:02:59.7]} 11... Bxf3 {[%clk 0:03:03.1]} 12. Qxf3 {[%clk 0:03:00.2]} 12... Nbd7
{[%clk 0:03:05]} 13. Bf4 {[%clk 0:02:58.5]} 13... Qc7 {[%clk 0:03:03.8]} 14.
Rfe1 {[%clk 0:02:44.8]} 14... Rfe8 {[%clk 0:03:02.7]} 15. Bh2 {[%clk 0:02:29.6]}
15... Nh5 {[%clk 0:02:47.8]} 16. g4 {[%clk 0:02:17.4]} 16... Nhf6 {[%clk
0:02:42.4]} 17. Qg3 {[%clk 0:02:03.6]} 17... Ne5 {[%clk 0:02:39.9]} 18. f4
{[%clk 0:02:01]} 18... Nxd3 {[%clk 0:02:35.8]} 19. Qxd3 {[%clk 0:02:01.8]} 19...
Nd7 {[%clk 0:02:37.7]} 20. Re2 {[%clk 0:01:52.6]} 20... Re7 {[%clk 0:02:35.8]}
21. Rae1 {[%clk 0:01:52.5]} 21... Rae8 {[%clk 0:02:35.6]} 22. b3 {[%clk
0:01:43.6]} 22... Qb6 {[%clk 0:02:23.8]} 23. Qc4 {[%clk 0:01:13.5]} 23... Qa5
{[%clk 0:02:00.8]} 24. Na2 {[%clk 0:01:03.1]} 24... b5 {[%clk 0:02:00.5]} 25.
axb5 {[%clk 0:00:54.7]} 25... axb5 {[%clk 0:02:02.4]} 26. Qc2 {[%clk 0:00:44.9]}
26... Qb6 {[%clk 0:01:55]} 27. Kg2 {[%clk 0:00:39.4]} 27... Qc7 {[%clk
0:00:55.8]} 28. Bg1 {[%clk 0:00:32.4]} 28... Nb6 {[%clk 0:00:53]} 29. Nc3 {[%clk
0:00:31.8]} 29... b4 {[%clk 0:00:49.9]} 30. Nd1 {[%clk 0:00:22.3]} 30... Rc8
{[%clk 0:00:42.7]} 31. Ne3 {[%clk 0:00:21.8]} 31... c4 {[%clk 0:00:39.2]} 32.
Nxc4 {[%clk 0:00:22.1]} 32... Nxc4 {[%clk 0:00:41]} 33. bxc4 {[%clk 0:00:23.4]}
33... Qxc4 {[%clk 0:00:42.4]} 34. Qxc4 {[%clk 0:00:24.3]} 34... Rxc4 {[%clk
0:00:44.3]} 35. Kf3 {[%clk 0:00:22.1]} 35... Rc3+ {[%clk 0:00:44.6]} 36. Re3
{[%clk 0:00:22.1]} 36... Bd4 {[%clk 0:00:37.5]} 37. Rxc3 {[%clk 0:00:21.1]}
37... Bxc3 {[%clk 0:00:39.4]} 38. Rb1 {[%clk 0:00:20.9]} 38... f6 {[%clk
0:00:36.2]} 39. Be3 {[%clk 0:00:18.2]} 39... Rb7 {[%clk 0:00:36.7]} 40. Ke2
{[%clk 0:00:17.7]} 40... Kf7 {[%clk 0:00:37.2]} 41. Bd2 {[%clk 0:00:18.4]} 41...
Bxd2 {[%clk 0:00:34]} 42. Kxd2 {[%clk 0:00:19.5]} 42... f5 {[%clk 0:00:35.4]}
43. Kd3 {[%clk 0:00:16]} 43... fxe4+ {[%clk 0:00:33.3]} 44. Kxe4 {[%clk
0:00:17.2]} 44... Kf6 {[%clk 0:00:31.8]} 45. Kd4 {[%clk 0:00:15.8]} 45... b3
{[%clk 0:00:26.9]} 46. Kc3 {[%clk 0:00:15.5]} 46... Rc7+ {[%clk 0:00:26.2]} 47.
Kxb3 {[%clk 0:00:14.2]} 47... Rc5 {[%clk 0:00:27.3]} 48. Rd1 {[%clk 0:00:13.6]}
48... h5 {[%clk 0:00:26.7]} 49. Rd4 {[%clk 0:00:11.4]} 49... Rc1 {[%clk
0:00:25.2]} 50. Rd3 {[%clk 0:00:07.6]} 50... Rf1 {[%clk 0:00:23.6]} 51. Rd4
{[%clk 0:00:07.7]} 51... Rf3+ {[%clk 0:00:24]} 52. Kc4 {[%clk 0:00:08.1]} 52...
Rxh3 {[%clk 0:00:24.7]} 53. gxh5 {[%clk 0:00:05.5]} 53... gxh5 {[%clk
0:00:24.3]} 54. Re4 {[%clk 0:00:06.3]} 54... Rf3 {[%clk 0:00:21.5]} 55. Kd4
{[%clk 0:00:06.9]} 55... Kf5 {[%clk 0:00:22.2]} 56. Re6 {[%clk 0:00:04.6]} 56...
Rxf4+ {[%clk 0:00:23.1]} 57. Ke3 {[%clk 0:00:05.7]} 57... Ra4 {[%clk 0:00:06.5]}
58. Rxd6 {[%clk 0:00:06.3]} 58... Ra5 {[%clk 0:00:07.7]} 59. Rd8 {[%clk
0:00:06.6]} 59... h4 {[%clk 0:00:07.6]} 60. d6 {[%clk 0:00:06.4]} 60... Kg4
{[%clk 0:00:08.3]} 61. d7 {[%clk 0:00:06.8]} 61... Ra3+ {[%clk 0:00:03.2]} 62.
Ke4 {[%clk 0:00:07.2]} 62... Ra4+ {[%clk 0:00:04.6]} 63. Ke5 {[%clk 0:00:08.4]}
63... Ra5+ {[%clk 0:00:05.3]} 64. Ke6 {[%clk 0:00:09.5]} 64... Ra6+ {[%clk
0:00:03.4]} 65. Ke7 {[%clk 0:00:10.2]} 65... Ra7 {[%clk 0:00:04.6]} 66. Rg8+
{[%clk 0:00:10.6]} 66... Kf3 {[%clk 0:00:04.9]} 67. Ke6 {[%clk 0:00:07.8]} 67...
Rxd7 {[%clk 0:00:05]} 68. Kxd7 {[%clk 0:00:09.6]} 68... h3 {[%clk 0:00:06.1]}
69. Ke6 {[%clk 0:00:10.2]} 69... h2 {[%clk 0:00:07.3]} 70. Rh8 {[%clk
0:00:11.3]} 70... Kg2 {[%clk 0:00:08.5]} 71. Rg8+ {[%clk 0:00:12.4]} 71... Kf2
{[%clk 0:00:09.4]} 72. Rh8 {[%clk 0:00:12.5]} 72... Kg2 {[%clk 0:00:10.6]} 73.
Rxh2+ {[%clk 0:00:06.8]} 73... Kxh2 {[%clk 0:00:12.5]} 1/2-1

[Event "Open Nuevo Centro. Jornada 1"]
[Site "Chess.com"]
[Date "2020.06.19"]
[Round "9"]
[White "Gukasov, Artem"]
[Black "Rodriguez, Mathias"]
[Result "0-1"]
[WhiteElo "1532"]
[BlackElo "1973"]
[TimeControl "180+2"]
[EndTime "12:08:35 PDT"]
[Termination "Victoria de niguil por abandono"]

1. e4 {[%clk 0:03:01.9]} 1... c5 {[%clk 0:03:00.9]} 2. Nf3 {[%clk 0:03:01.6]}
2... Nc6 {[%clk 0:03:02.1]} 3. d4 {[%clk 0:03:03.3]} 3... cxd4 {[%clk 0:03:04]}
4. Nxd4 {[%clk 0:03:03.9]} 4... Nf6 {[%clk 0:03:05.5]} 5. Nc3 {[%clk 0:03:03.6]}
5... e5 {[%clk 0:03:07]} 6. Nxc6 {[%clk 0:03:02.6]} 6... bxc6 {[%clk 0:03:07.9]}
7. Be3 {[%clk 0:03:02.8]} 7... Bb4 {[%clk 0:03:09]} 8. Bd3 {[%clk 0:02:59.2]}
8... d5 {[%clk 0:03:09.1]} 9. exd5 {[%clk 0:02:59.7]} 9... cxd5 {[%clk 0:03:11]}
10. a3 {[%clk 0:03:00.9]} 10... Bxc3+ {[%clk 0:03:10.3]} 11. bxc3 {[%clk
0:03:02.2]} 11... O-O {[%clk 0:03:10.5]} 12. O-O {[%clk 0:03:01.8]} 12... h6
{[%clk 0:03:10.6]} 13. Be2 {[%clk 0:02:56.8]} 13... Bf5 {[%clk 0:03:08]} 14. f3
{[%clk 0:02:54.4]} 14... Rc8 {[%clk 0:03:08.4]} 15. Qd2 {[%clk 0:02:52.1]} 15...
Qc7 {[%clk 0:03:09.2]} 16. Bd3 {[%clk 0:02:49.8]} 16... Bxd3 {[%clk 0:03:07.8]}
17. Qxd3 {[%clk 0:02:51.7]} 17... Qxc3 {[%clk 0:03:09.6]} 18. Qxc3 {[%clk
0:02:51.5]} 18... Rxc3 {[%clk 0:03:11.5]} 19. Bxa7 {[%clk 0:02:49.7]} 19... Rxc2
{[%clk 0:03:12.9]} 20. Rfe1 {[%clk 0:02:50.7]} 20... e4 {[%clk 0:03:13.6]} 21.
fxe4 {[%clk 0:02:51.5]} 21... dxe4 {[%clk 0:03:14.9]} 22. Bd4 {[%clk 0:02:52]}
22... Re8 {[%clk 0:03:14.8]} 23. Bxf6 {[%clk 0:02:51.8]} 23... gxf6 {[%clk
0:03:16.7]} 24. Rab1 {[%clk 0:02:52.8]} 24... Ra2 {[%clk 0:03:16.8]} 25. Rb3
{[%clk 0:02:49.3]} 25... Kg7 {[%clk 0:03:16.3]} 26. Rbe3 {[%clk 0:02:48.8]}
26... f5 {[%clk 0:03:17.3]} 27. Rd3 {[%clk 0:02:48.2]} 27... exd3 {[%clk
0:03:17.4]} 28. Rxe8 {[%clk 0:02:47.1]} 28... d2 {[%clk 0:03:18.5]} 29. Rd8
{[%clk 0:02:47.9]} 29... Ra1+ {[%clk 0:03:19.7]} 0

[Event "Open Nuevo Centro. Jornada 1"]
[Site "Chess.com"]
[Date "2020.06.19"]
[Round "9"]
[White "Grigorev, Artur "]
[Black "Rabbani Perez, Oumaima "]
[Result "1-0"]
[WhiteElo "874"]
[BlackElo "754"]
[TimeControl "180+2"]
[EndTime "12:09:12 PDT"]
[Termination "Victoria de Arturiog por jaque mate"]

1. e4 {[%clk 0:03:01.9]} 1... e5 {[%clk 0:03:00.1]} 2. Nf3 {[%clk 0:03:02.3]}
2... Nf6 {[%clk 0:02:59.1]} 3. Nxe5 {[%clk 0:03:01.8]} 3... Nxe4 {[%clk
0:02:59.1]} 4. Qe2 {[%clk 0:03:02.3]} 4... Nf6 {[%clk 0:02:54.5]} 5. Nc6+ {[%clk
0:03:01.4]} 5... Be7 {[%clk 0:02:47.7]} 6. Nxd8 {[%clk 0:03:02.1]} 6... Kxd8
{[%clk 0:02:47.4]} 7. d3 {[%clk 0:03:01.1]} 7... Nc6 {[%clk 0:02:46.7]} 8. Bg5
{[%clk 0:03:00.9]} 8... Nd4 {[%clk 0:02:43.2]} 9. Qe5 {[%clk 0:02:53.8]} 9...
Ng4 {[%clk 0:02:36.9]} 10. Bf4 {[%clk 0:02:52.3]} 10... Nc6 {[%clk 0:02:35]} 11.
Qxc7+ {[%clk 0:02:49.7]} 11... Ke8 {[%clk 0:02:31.5]} 12. d4 {[%clk 0:02:41.8]}
12... Nxd4 {[%clk 0:02:29.4]} 13. Bc4 {[%clk 0:02:35.4]} 13... Bh4 {[%clk
0:02:28.2]} 14. O-O {[%clk 0:02:28.1]} 14... Nxf2 {[%clk 0:02:30.1]} 15. Re1+
{[%clk 0:02:27.8]} 15... Kf8 {[%clk 0:02:16.6]} 16. Bd6+ {[%clk 0:02:27.8]}
16... Kg8 {[%clk 0:01:58.5]} 17. Re8# {[%clk 0:02:27.7]} 1

[Event "Open Nuevo Centro. Jornada 1"]
[Site "Chess.com"]
[Date "2020.06.19"]
[Round "9"]
[White "Morata Briones, Carlos"]
[Black "Miranda Calvo, Max Rodrigo"]
[Result "0-1"]
[WhiteElo "771"]
[BlackElo "1202"]
[TimeControl "180+2"]
[EndTime "12:09:26 PDT"]
[Termination "Victoria de bas-max-miranda por jaque mate"]

1. e4 {[%clk 0:03:00.5]} 1... e5 {[%clk 0:03:00.2]} 2. Qh5 {[%clk 0:02:55.9]}
2... Nc6 {[%clk 0:02:58]} 3. Bc4 {[%clk 0:02:51.5]} 3... g6 {[%clk 0:02:58.8]}
4. Qf3 {[%clk 0:02:51.1]} 4... Nf6 {[%clk 0:02:59.7]} 5. c3 {[%clk 0:02:50.9]}
5... Bg7 {[%clk 0:02:59.7]} 6. Nh3 {[%clk 0:02:50.8]} 6... d6 {[%clk 0:03:00.5]}
7. Ng5 {[%clk 0:02:49.3]} 7... Bg4 {[%clk 0:03:00.7]} 8. Qe3 {[%clk 0:02:41.6]}
8... O-O {[%clk 0:02:58.7]} 9. Bxf7+ {[%clk 0:02:25.4]} 9... Rxf7 {[%clk
0:02:58.6]} 10. Nxf7 {[%clk 0:02:25.7]} 10... Kxf7 {[%clk 0:03:00.5]} 11. Na3
{[%clk 0:02:22.7]} 11... Be6 {[%clk 0:02:58.1]} 12. b3 {[%clk 0:02:21]} 12... a6
{[%clk 0:02:58.8]} 13. c4 {[%clk 0:02:21.5]} 13... Nd4 {[%clk 0:02:58.3]} 14.
O-O {[%clk 0:02:17.8]} 14... Kg8 {[%clk 0:02:57.6]} 15. Bb2 {[%clk 0:02:15.9]}
15... c5 {[%clk 0:02:56.4]} 16. Bxd4 {[%clk 0:02:14.4]} 16... cxd4 {[%clk
0:02:57.1]} 17. Qf3 {[%clk 0:02:13.1]} 17... Qe7 {[%clk 0:02:55.6]} 18. Nc2
{[%clk 0:02:10.5]} 18... Rf8 {[%clk 0:02:56]} 19. Ne1 {[%clk 0:02:10.5]} 19...
Nh5 {[%clk 0:02:55.7]} 20. Qh3 {[%clk 0:02:10]} 20... Nf4 {[%clk 0:02:55.8]} 21.
Qg3 {[%clk 0:02:02.5]} 21... Ne2+ {[%clk 0:02:53.7]} 22. Kh1 {[%clk 0:01:46]}
22... Nxg3+ {[%clk 0:02:51.8]} 23. fxg3 {[%clk 0:01:45.4]} 23... Rxf1# {[%clk
0:02:50]} 0

[Event "Open Nuevo Centro. Jornada 1"]
[Site "Chess.com"]
[Date "2020.06.19"]
[Round "9"]
[White "Montesinos Diaz, Luis"]
[Black "Donate Peris, Jose Manuel"]
[Result "1-0"]
[WhiteElo "1925"]
[BlackElo "1624"]
[TimeControl "180+2"]
[EndTime "12:09:41 PDT"]
[Termination "Victoria de Gwiso_06 por abandono"]

1. d4 {[%clk 0:03:01.9]} 1... Nf6 {[%clk 0:02:59.8]} 2. Nf3 {[%clk 0:02:52.5]}
2... d5 {[%clk 0:02:59.9]} 3. e3 {[%clk 0:02:48.2]} 3... h6 {[%clk 0:02:56.9]}
4. Bd3 {[%clk 0:02:48.4]} 4... e6 {[%clk 0:02:53.6]} 5. b3 {[%clk 0:02:49.2]}
5... c5 {[%clk 0:02:53.7]} 6. Bb2 {[%clk 0:02:50]} 6... Nc6 {[%clk 0:02:52.5]}
7. a3 {[%clk 0:02:49.3]} 7... a5 {[%clk 0:02:50.9]} 8. O-O {[%clk 0:02:49.7]}
8... Bd7 {[%clk 0:02:50]} 9. Nbd2 {[%clk 0:02:48.4]} 9... Bd6 {[%clk 0:02:47.4]}
10. c4 {[%clk 0:02:47.7]} 10... dxc4 {[%clk 0:02:43.5]} 11. Nxc4 {[%clk
0:02:41.9]} 11... Be7 {[%clk 0:02:40.2]} 12. Nfe5 {[%clk 0:02:37.5]} 12... cxd4
{[%clk 0:02:37.4]} 13. exd4 {[%clk 0:02:38.3]} 13... Nxe5 {[%clk 0:02:34.3]} 14.
Nxe5 {[%clk 0:02:36.8]} 14... Nd5 {[%clk 0:02:34.4]} 15. Qf3 {[%clk 0:02:36.6]}
15... Bf6 {[%clk 0:02:27.5]} 16. Rac1 {[%clk 0:02:36.6]} 16... O-O {[%clk
0:02:23.1]} 17. Rfd1 {[%clk 0:02:32]} 17... Rc8 {[%clk 0:02:20]} 18. Qe4 {[%clk
0:02:28.5]} 18... g6 {[%clk 0:02:12.6]} 19. Nxg6 {[%clk 0:02:27.5]} 19... Rxc1
{[%clk 0:01:57.2]} 20. Ne7+ {[%clk 0:02:26.5]} 1

[Event "Open Nuevo Centro. Jornada 1"]
[Site "Chess.com"]
[Date "2020.06.19"]
[Round "9"]
[White "Zamora Soler, Raul"]
[Black "Gimeno Higueras, Roberto"]
[Result "1-0"]
[WhiteElo "1770"]
[BlackElo "1984"]
[TimeControl "180+2"]
[EndTime "12:09:53 PDT"]
[Termination "Victoria de rzamora80 por abandono"]

1. e4 {[%clk 0:03:01.9]} 1... c6 {[%clk 0:03:00.8]} 2. d4 {[%clk 0:02:59.2]}
2... d5 {[%clk 0:03:01.7]} 3. exd5 {[%clk 0:03:00.7]} 3... cxd5 {[%clk
0:03:02.7]} 4. Bb5+ {[%clk 0:03:00.8]} 4... Nc6 {[%clk 0:03:03.3]} 5. Bxc6+
{[%clk 0:03:01.9]} 5... bxc6 {[%clk 0:03:04.2]} 6. c3 {[%clk 0:03:03.5]} 6...
Nf6 {[%clk 0:03:05]} 7. Bf4 {[%clk 0:03:04.1]} 7... g6 {[%clk 0:03:05.5]} 8. Ne2
{[%clk 0:03:04.1]} 8... Bg7 {[%clk 0:03:06.5]} 9. O-O {[%clk 0:03:04.9]} 9...
O-O {[%clk 0:03:07.5]} 10. Re1 {[%clk 0:03:04.5]} 10... Nh5 {[%clk 0:03:05.4]}
11. f3 {[%clk 0:02:55.9]} 11... Re8 {[%clk 0:03:02.6]} 12. Nd2 {[%clk 0:02:49]}
12... Ba6 {[%clk 0:03:00.5]} 13. Bg3 {[%clk 0:02:42.8]} 13... Nxg3 {[%clk
0:03:00.9]} 14. hxg3 {[%clk 0:02:39.8]} 14... e5 {[%clk 0:02:55.6]} 15. Nb3
{[%clk 0:02:39.4]} 15... e4 {[%clk 0:02:53.6]} 16. fxe4 {[%clk 0:02:36.8]} 16...
Bxe2 {[%clk 0:02:47.4]} 17. Rxe2 {[%clk 0:02:34.5]} 17... dxe4 {[%clk
0:02:48.3]} 18. Nc5 {[%clk 0:02:33.5]} 18... f5 {[%clk 0:02:49.1]} 19. Qb3+
{[%clk 0:02:29.5]} 19... Qd5 {[%clk 0:02:49.8]} 20. Qxd5+ {[%clk 0:02:21.9]}
20... cxd5 {[%clk 0:02:50.7]} 21. b4 {[%clk 0:02:20.6]} 21... g5 {[%clk
0:02:50]} 22. Rf1 {[%clk 0:02:20.5]} 22... Rf8 {[%clk 0:02:33.8]} 23. Ne6 {[%clk
0:02:13.7]} 23... h6 {[%clk 0:02:34.7]} 24. Nxf8 {[%clk 0:02:13.9]} 24... Bxf8
{[%clk 0:02:35.6]} 25. Rxf5 {[%clk 0:02:13.7]} 25... Rc8 {[%clk 0:02:35.7]} 26.
Rxd5 {[%clk 0:02:05.1]} 26... Rxc3 {[%clk 0:02:36.6]} 27. Rd8 {[%clk 0:01:59.6]}
27... Kf7 {[%clk 0:02:35.1]} 28. Rf2+ {[%clk 0:01:59.1]} 1

[Event "Open Nuevo Centro. Jornada 1"]
[Site "Chess.com"]
[Date "2020.06.19"]
[Round "9"]
[White "Teply Koutsky, David"]
[Black "Ferrando Lacruz, Nicol�s "]
[Result "1-0"]
[WhiteElo "1584"]
[BlackElo "1328"]
[TimeControl "180+2"]
[EndTime "12:10:11 PDT"]
[Termination "Victoria de Mrchessmashine por jaque mate"]

1. d4 {[%clk 0:03:01.9]} 1... g6 {[%clk 0:02:59.3]} 2. c4 {[%clk 0:03:01.8]}
2... Nf6 {[%clk 0:02:57]} 3. Nc3 {[%clk 0:03:02]} 3... e6 {[%clk 0:02:58.1]} 4.
e4 {[%clk 0:03:00.9]} 4... Bg7 {[%clk 0:02:59.5]} 5. Be2 {[%clk 0:03:01.2]} 5...
O-O {[%clk 0:03:01]} 6. Be3 {[%clk 0:02:59]} 6... Nc6 {[%clk 0:03:02.1]} 7. f3
{[%clk 0:02:54.8]} 7... Nh5 {[%clk 0:02:52.4]} 8. g4 {[%clk 0:02:52.3]} 8...
Qh4+ {[%clk 0:02:49]} 9. Bf2 {[%clk 0:02:52.8]} 9... Qf6 {[%clk 0:02:35]} 10. e5
{[%clk 0:02:41.8]} 10... Qe7 {[%clk 0:02:29.9]} 11. gxh5 {[%clk 0:02:41.6]}
11... gxh5 {[%clk 0:02:29.2]} 12. Qd2 {[%clk 0:02:39.6]} 12... d6 {[%clk
0:02:17.8]} 13. exd6 {[%clk 0:02:36.8]} 13... cxd6 {[%clk 0:02:16.6]} 14. O-O-O
{[%clk 0:02:37]} 14... Qf6 {[%clk 0:02:13.5]} 15. Be3 {[%clk 0:02:32.7]} 15...
e5 {[%clk 0:02:07.8]} 16. dxe5 {[%clk 0:02:32.3]} 16... dxe5 {[%clk 0:02:08.5]}
17. Ne4 {[%clk 0:02:17.6]} 17... Rd8 {[%clk 0:02:05.7]} 18. Nxf6+ {[%clk
0:02:17.9]} 18... Bxf6 {[%clk 0:02:03.4]} 19. Qc2 {[%clk 0:02:15.6]} 19... Nb4
{[%clk 0:02:02.4]} 20. Rxd8+ {[%clk 0:02:14.2]} 20... Bxd8 {[%clk 0:02:00.3]}
21. Qd2 {[%clk 0:02:14.6]} 21... a5 {[%clk 0:01:52.9]} 22. Bh6 {[%clk
0:02:12.8]} 22... Nxa2+ {[%clk 0:01:52]} 23. Kb1 {[%clk 0:02:12.9]} 23... Nb4
{[%clk 0:01:52.1]} 24. Qxd8# {[%clk 0:02:13.1]} 1

[Event "Open Nuevo Centro. Jornada 1"]
[Site "Chess.com"]
[Date "2020.06.19"]
[Round "9"]
[White "Yuste Valenzuela, Alejandro"]
[Black "Deusa Ballesteros, Lucas "]
[Result "1-0"]
[WhiteElo "1777"]
[BlackElo "1461"]
[TimeControl "180+2"]
[EndTime "12:10:15 PDT"]
[Termination "Victoria de alejandrito290 por abandono"]

1. e4 {[%clk 0:03:01.9]} 1... c5 {[%clk 0:02:58.3]} 2. Nf3 {[%clk 0:03:02.5]}
2... d6 {[%clk 0:02:59.4]} 3. d4 {[%clk 0:03:03.5]} 3... cxd4 {[%clk 0:03:01.3]}
4. Nxd4 {[%clk 0:03:05.4]} 4... Nf6 {[%clk 0:03:01.3]} 5. Nc3 {[%clk 0:03:05.9]}
5... g6 {[%clk 0:03:01.9]} 6. Bc4 {[%clk 0:03:06.8]} 6... Bg7 {[%clk 0:03:02.2]}
7. Be3 {[%clk 0:03:07.3]} 7... Nc6 {[%clk 0:03:00.4]} 8. f3 {[%clk 0:03:07.2]}
8... Na5 {[%clk 0:02:59.2]} 9. Bb3 {[%clk 0:03:07.6]} 9... Nxb3 {[%clk
0:02:59.9]} 10. axb3 {[%clk 0:03:06.8]} 10... O-O {[%clk 0:03:01.3]} 11. Qd2
{[%clk 0:03:07.4]} 11... a6 {[%clk 0:02:59.8]} 12. h4 {[%clk 0:03:07.3]} 12...
h5 {[%clk 0:02:59]} 13. O-O-O {[%clk 0:03:07]} 13... b5 {[%clk 0:02:57.5]} 14.
Kb1 {[%clk 0:03:08]} 14... Bb7 {[%clk 0:02:51.6]} 15. g4 {[%clk 0:03:07.2]}
15... hxg4 {[%clk 0:02:49.1]} 16. h5 {[%clk 0:03:09.1]} 16... gxh5 {[%clk
0:02:36.6]} 17. Bh6 {[%clk 0:03:07.3]} 17... Bc8 {[%clk 0:02:15.5]} 18. Qg5
{[%clk 0:03:02.9]} 18... Ne8 {[%clk 0:02:12.7]} 19. Rxh5 {[%clk 0:02:36.8]}
19... f6 {[%clk 0:02:07.1]} 20. Qg6 {[%clk 0:02:30.3]} 20... e5 {[%clk
0:01:56.7]} 21. Rdh1 {[%clk 0:02:24.8]} 1

[Event "Open Nuevo Centro. Jornada 1"]
[Site "Chess.com"]
[Date "2020.06.19"]
[Round "9"]
[White "Zakharash, Georgii"]
[Black "Beneyto de Ramon, Guillermo"]
[Result "0-1"]
[WhiteElo "1049"]
[BlackElo "1481"]
[TimeControl "180+2"]
[EndTime "12:10:21 PDT"]
[Termination "Victoria de GUILLETE por jaque mate"]

1. e4 {[%clk 0:03:01.9]} 1... Nf6 {[%clk 0:03:00.4]} 2. e5 {[%clk 0:03:01.6]}
2... Nd5 {[%clk 0:03:01.5]} 3. d4 {[%clk 0:03:01.3]} 3... d6 {[%clk 0:03:02.5]}
4. c4 {[%clk 0:03:00.5]} 4... Nb6 {[%clk 0:03:03.5]} 5. f4 {[%clk 0:02:54.4]}
5... dxe5 {[%clk 0:03:04]} 6. fxe5 {[%clk 0:02:50.2]} 6... Nc6 {[%clk
0:03:04.5]} 7. Nf3 {[%clk 0:02:46.4]} 7... Bg4 {[%clk 0:03:04.6]} 8. h3 {[%clk
0:02:33.4]} 8... Bxf3 {[%clk 0:03:02.7]} 9. Qxf3 {[%clk 0:02:32.5]} 9... Qxd4
{[%clk 0:03:01.3]} 10. Bf4 {[%clk 0:02:18.2]} 10... Qxb2 {[%clk 0:02:55.2]} 11.
Nd2 {[%clk 0:01:56.3]} 11... Qxa1+ {[%clk 0:02:51.5]} 12. Ke2 {[%clk 0:01:54.7]}
12... Nd4+ {[%clk 0:02:51.2]} 13. Kf2 {[%clk 0:01:54]} 13... Nxf3 {[%clk
0:02:51.6]} 14. Kxf3 {[%clk 0:01:53.2]} 14... Qxa2 {[%clk 0:02:50.6]} 15. Bg5
{[%clk 0:01:35.7]} 15... Rd8 {[%clk 0:02:47.5]} 16. Bh4 {[%clk 0:01:27.5]} 16...
Qxd2 {[%clk 0:02:44.6]} 17. Bg5 {[%clk 0:01:13.3]} 17... Qxg5 {[%clk 0:02:43.6]}
18. Rg1 {[%clk 0:00:53]} 18... Qf5+ {[%clk 0:02:41]} 19. Ke3 {[%clk 0:00:51.3]}
19... e6 {[%clk 0:02:37.5]} 20. Be2 {[%clk 0:00:51.6]} 20... Bc5# {[%clk
0:02:37.7]} 0

[Event "Open Nuevo Centro. Jornada 1"]
[Site "Chess.com"]
[Date "2020.06.19"]
[Round "9"]
[White "Serradilla Revert, Rodrigo"]
[Black "Rabbani Perez, Ayoub "]
[Result "1-0"]
[WhiteElo "628"]
[BlackElo "222"]
[TimeControl "180+2"]
[EndTime "12:10:27 PDT"]
[Termination "Victoria de ordigo2011 por abandono"]

1. d4 {[%clk 0:03:01.9]} 1... c5 {[%clk 0:03:00.2]} 2. e3 {[%clk 0:03:02]} 2...
cxd4 {[%clk 0:02:58.8]} 3. exd4 {[%clk 0:03:01.1]} 3... Nc6 {[%clk 0:02:57.2]}
4. Nf3 {[%clk 0:03:01.4]} 4... Nxd4 {[%clk 0:02:55.6]} 5. Nxd4 {[%clk
0:02:59.8]} 5... b5 {[%clk 0:02:51.6]} 6. Nxb5 {[%clk 0:02:59]} 6... a6 {[%clk
0:02:51.4]} 7. N5a3 {[%clk 0:02:52.6]} 7... d5 {[%clk 0:02:49.3]} 8. g3 {[%clk
0:02:50.4]} 8... a5 {[%clk 0:02:48.8]} 9. Nb5 {[%clk 0:02:49.8]} 9... Bf5 {[%clk
0:02:46]} 10. Nd4 {[%clk 0:02:47.8]} 10... Bxc2 {[%clk 0:02:44.5]} 11. Nxc2
{[%clk 0:02:47.8]} 11... d4 {[%clk 0:02:42.9]} 12. Bh3 {[%clk 0:02:48.4]} 12...
d3 {[%clk 0:02:43]} 13. Qxd3 {[%clk 0:02:46.9]} 13... Qxd3 {[%clk 0:02:42.3]}
14. Bf1 {[%clk 0:02:35.2]} 14... Qd8 {[%clk 0:02:40.2]} 15. Ke2 {[%clk
0:02:32.4]} 15... Rc8 {[%clk 0:02:37.1]} 16. Bg2 {[%clk 0:02:30.3]} 16... Rc7
{[%clk 0:02:36.6]} 17. Rd1 {[%clk 0:02:27.5]} 17... Rd7 {[%clk 0:02:35.6]} 18.
Bc6 {[%clk 0:02:20.3]} 18... Qb8 {[%clk 0:02:31]} 19. Bxd7+ {[%clk 0:02:16.1]}
19... Kd8 {[%clk 0:02:28.5]} 20. Bf4 {[%clk 0:02:10.3]} 20... Qxb2 {[%clk
0:02:24.1]} 21. Bc6+ {[%clk 0:01:57.9]} 21... Kc8 {[%clk 0:02:20]} 22. Bc1
{[%clk 0:01:29]} 22... a4 {[%clk 0:02:21.9]} 23. Bxb2 {[%clk 0:01:27.1]} 23...
e5 {[%clk 0:02:19.4]} 1